Cogmind - Beta 16 @@@ ROGUE MODE // 2025.12.27 @ 09:37:33 Player: Compilatron Result: Destroyed by G-34 Mercenary with Small Laser Performance ------------- Evolutions (1) 500 Regions Visited (3) 600 Robots Destroyed (34) 170 Value Destroyed (786) 786 Prototype IDs (1) 20 Alien Tech Used (0) 0 Bonus (0) 0 TOTAL SCORE: 2076 Bonus ------- None Cogmind --------- Core Integrity 0/400 Matter 299/300 Energy 94/100 System Corruption 0% Temperature Warm (137) Movement Treading (240) Ox1 Location -9/Materials Parts ------- > --- POWER (1) -------- (None) > --- PROPULSION (2) --- Light Treads > --- UTILITY (4) ------ Large Storage Unit Visual Processing Unit Hacking Suite > --- WEAPON (2) ------- Beam Rifle Light Assault Rifle > --- INVENTORY (15) --- Cooled Ion Engine Light Treads Armored Wheel Armored Wheel Small Storage Unit Medium Storage Unit Large Storage Unit Visual Processing Unit Beam Rifle Light Assault Rifle Peak State ------------ > --- POWER ------------ Cooled Ion Engine > --- PROPULSION ------- Armored Wheel Armored Wheel > --- UTILITY ---------- Heat Sink Visual Processing Unit Transport Network Coupler Hacking Suite > --- WEAPON ----------- EM Shotgun Light Assault Rifle > --- INVENTORY -------- Cooled Ion Engine Light Treads Armored Wheel Armored Wheel Visual Processing Unit [Rating: 18] Favorites ----------- Power Cooled Ion Engine Engine Cooled Ion Engine Propulsion Light Treads Treads Light Treads Leg Aluminum Leg Wheel Armored Wheel Utility Hacking Suite Device Heat Sink Storage Large Storage Unit Processor Visual Processing Unit Hackware Hacking Suite Weapon Light Assault Rifle Energy Gun Small Laser Ballistic Gun Light Assault Rifle Build | -11 -10 -10 -9 ------- Run | Yrd Mat Min Mat Slots Evolved 2 | . . . 2 Power . | . . . . Propulsion . | . . . . Utility 2 | . . . 2 Weapon . | . . . . Parts Attached 24 | . 8 . 16 Power 4 | . 1 . 3 Engine 4 | . 1 . 3 Core . | . . . . Reactor . | . . . . Propulsion 6 | . 3 . 3 Treads 3 | . 2 . 1 Leg . | . . . . Wheel 3 | . 1 . 2 Hover . | . . . . Flight . | . . . . Utility 6 | . 1 . 5 Device 1 | . . . 1 Storage 2 | . 1 . 1 Processor 2 | . . . 2 Hackware 1 | . . . 1 Protection . | . . . . Artifact . | . . . . Weapon 8 | . 3 . 5 Energy Gun 2 | . . . 2 Energy Cannon . | . . . . Ballistic Gun 6 | . 3 . 3 Ballistic Cannon . | . . . . Launcher . | . . . . Special Weapon . | . . . . Impact Weapon . | . . . . Slashing Weapon . | . . . . Piercing Weapon . | . . . . Special Melee Weapon . | . . . . Unidentified Prototypes 1 | . . . 1 Parts Lost 9 | . 3 1 5 Power 3 | . 1 1 1 Propulsion 2 | . 1 . 1 Utility 1 | . . . 1 Weapon 3 | . 1 . 2 Highest Loss Streak 2 | . 2 1 2 To Critical Strikes 1 | . 1 . . Average Backups 6 | . 7 9 6 Power . | . . 1 . Propulsion 2 | . 3 1 2 Utility 2 | . 2 3 2 Weapon 1 | . 1 3 . Tool/Special . | . . . . Unused Backups 14 | . 2 3 9 Power 3 | . 2 . 1 Propulsion 4 | . . 1 3 Utility 5 | . . 1 4 Weapon 2 | . . 1 1 Tool/Special . | . . . . Average Slot Usage (%) 85 | . 83 79 86 Engine 11 | . 13 10 10 Treads 10 | . 8 14 11 Leg 6 | . 19 . . Wheel 7 | . . 14 10 Device 3 | . . . 5 Storage 8 | . 14 12 5 Processor 7 | . . . 12 Hackware 6 | . . . 11 Energy Gun 8 | . 20 . 2 Ballistic Gun 14 | . 7 28 16 Peak Build Rating 18 | . 7 7 18 Average Rating 11 | . 6 6 13 On Entrance 5 | 6 6 7 4 Avg Prop Armor Cover (%) 14 | . 14 15 14 Naked Turns . | . . . . Heaviest Build 45 | 13 45 45 33 Greatest Support 40 | 20 40 10 40 Greatest Overweight (x) 4 | . 4 4 1 Average Overweight (x) . | . . 2 . Largest Inventory Capacity 20 | . 20 20 15 Average Capacity 10 | . 11 17 10 Most Carried 11 | . 10 11 10 Average Carried 6 | . 7 9 6 Final Capacity 20 | 8 20 5 15 Final Carried 10 | 6 10 5 10 Class Distribution -------------------- 64% | Scavenger-Mutant 35% | Mutant Dominant Class ---------------- Mutant | -10/Materials Mutant | -10/Mines Scavenger-Mutant | -9/Materials Resources | -11 -10 -10 -9 ----------- Run | Yrd Mat Min Mat Matter Collected 596 | 200 69 . 327 Remotely . | . . . . Salvage Created 1039 | . 447 11 581 Parts 76 | . 38 . 38 Haulers Intercepted 1 | . . . 1 Recyclers Shooed . | . . . . Parts Field Recycled . | . . . . Retrieved Matter . | . . . . Parts Self-Destructed . | . . . . Prevented . | . . . . Parts Restored . | . . . . Kills | -11 -10 -10 -9 ------- Run | Yrd Mat Min Mat Combat Hostiles Destroyed 28 | . 13 1 14 Guns 28 | . 13 1 14 Classes Destroyed 9 | . 5 1 3 Builder 1 | . 1 . . Hauler 1 | . . . 1 Operator 1 | . 1 . . Watcher 4 | . 2 . 2 Swarmer 12 | . 7 . 5 Grunt 11 | . 6 . 5 Duelist 1 | . . . 1 Sentry 3 | . . . 3 Assembled 1 | . . 1 . Best Kill Streak 9 | . 9 1 4 Combat Bots Only 9 | . 9 1 4 Max Kills in Single Turn 1 | . 1 1 1 Gunslinging . | . . . . Exploded . | . . . . Melee . | . . . . Uniques/NPCs Destroyed . | . . . . Combat | -11 -10 -10 -9 -------- Run | Yrd Mat Min Mat Hostile Shots Fired 222 | . 61 15 146 Missed 60 | . 18 4 38 Hits 162 | . 43 11 108 Melee 6 | . . . 6 Projectile 156 | . 43 11 102 AOE 7 | . . 7 . Critical Strikes 4 | . 1 . 3 Damage Taken 2004 | . 397 295 1312 Core 569 | . 83 83 403 Absorbed by Shields . | . . . . Regen/Repaired (Parts) 68 | . . . 68 Core Remaining (%) 66 | 100 . 33 . Volleys Fired 118 | . 35 4 79 Largest 2 | . 2 2 2 Hottest 80 | . 80 40 76 Shots Fired 201 | . 59 8 134 Gun 201 | . 59 8 134 Cannon . | . . . . Launcher . | . . . . Special . | . . . . Kinetic 143 | . 14 8 121 Thermal 39 | . 28 . 11 Explosive . | . . . . Electromagnetic 19 | . 17 . 2 Robot Hit Streak 15 | . 7 14 15 Robot Miss Streak 4 | . 2 . 4 Penetration Max . | . . . . Secondary Targets 5 | . 2 1 2 Max Gunslinging Chain 1 | . 1 1 1 Shots Hit Robots 139 | . 39 8 92 Core Hits 71 | . 25 5 41 Critical Kills . | . . . . Critical Parts Destroyed . | . . . . Critical Strikes . | . . . . Melee Attacks . | . . . . Impact . | . . . . Slashing . | . . . . Piercing . | . . . . Sneak Attacks . | . . . . Combat Hostiles . | . . . . Follow-up Attacks . | . . . . Damage Inflicted 1399 | . 504 65 830 Guns 1376 | . 481 65 830 Cannons . | . . . . Explosions 23 | . 23 . . Melee . | . . . . Ramming . | . . . . Kinetic 843 | . 63 65 715 Thermal 368 | . 253 . 115 Explosive . | . . . . Electromagnetic 188 | . 188 . . Impact . | . . . . Slashing . | . . . . Piercing . | . . . . Highest Corruption . | . . . . Average Corruption . | . . . . Corruption Purged . | . . . . Corruption Blocked . | . . . . Overload Shots . | . . . . Overflow Damage . | . . . . Projectiles . | . . . . Explosions . | . . . . Melee . | . . . . Knockbacks . | . . . . Impact . | . . . . Kinetic . | . . . . Secondary . | . . . . Self-Inflicted Damage . | . . . . Shots . | . . . . Rammed . | . . . . Targets Rammed . | . . . . Kicked . | . . . . Crushed . | . . . . Highest Temperature 131 | . 114 . 131 Average Temperature 36 | . 34 . 40 Received Heat Transfer 432 | . 108 . 324 Siege Activations . | . . . . Martial Activations . | . . . . Shielding Activations . | . . . . Robots Disrupted . | . . . . Combat Hostiles . | . . . . Robots Corrupted . | . . . . Combat Hostiles . | . . . . Parts Fried 1 | . 1 . . Impact Corruptions . | . . . . Robots Melted . | . . . . Combat Hostiles . | . . . . Parts Melted 1 | . 1 . . Heat Transferred 871 | . 575 . 296 Parts Sabotaged . | . . . . Parts Stolen . | . . . . Parts Stripped . | . . . . Power Chain Reactions 1 | . 1 . . Alert | -11 -10 -10 -9 ------- Run | Yrd Mat Min Mat Maximum Alert Level 1 | . 1 . . Low Security (%) 95 | . 87 100 100 Level 1 4 | . 12 . . Level 2 . | . . . . Level 3 . | . . . . Level 4 . | . . . . Level 5 . | . . . . High Security . | . . . . Max Security . | . . . . Peak Influence 222 | . 222 63 103 Initial 63 | . . 63 . Average 63 | . 94 38 50 Influence Increases 771 | . 368 . 403 Destroy 0b10 Robot/C 540 | . 260 . 280 Destroy 0b10 Robot/NC 35 | . 20 . 15 Destroy Leader 130 | . 54 . 76 Successful Hack 31 | . 14 . 17 Disable Machine 15 | . 15 . . Destroy Structure 5 | . 5 . . Lose Combat Pursuer 15 | . . . 15 Influence Decreases 735 | . 204 161 370 Entered New Map 104 | . . 101 3 Time Decay 521 | . 174 30 317 Lost Part 90 | . 30 10 50 Lost Ally 20 | . . 20 . Squads Dispatched 3 | . 3 . . Investigation . | . . . . Extermination . | . . . . Reinforcement 3 | . 3 . . Assault . | . . . . Garrison . | . . . . Intercept . | . . . . Searches Triggered . | . . . . Construction Impeded . | . . . . Haulers Reinforced . | . . . . Active Scanning Responses . | . . . . Cargo Convoy Interrupts . | . . . . Stealth | -11 -10 -10 -9 --------- Run | Yrd Mat Min Mat Distress Signals 3 | . 2 . 1 Communications Jammed . | . . . . Distress Signals . | . . . . Times Spotted 68 | . 22 20 26 Peak Tracking Total 18 | . 5 18 6 Tactical Retreats 2 | . . 1 1 Traps | -11 -10 -10 -9 ------- Run | Yrd Mat Min Mat Traps Triggered . | . . . . Indirectly . | . . . . Trap Hack Attempts . | . . . . Triggered . | . . . . Disarmed . | . . . . Reprogrammed . | . . . . Reused . | . . . . Traps Extracted . | . . . . Installed . | . . . . Triggered . | . . . . Machines | -11 -10 -10 -9 ---------- Run | Yrd Mat Min Mat Machines Disabled 1 | . 1 . . Max in Single Turn 1 | . 1 . . Machines Repaired . | . . . . Machines Dismantled . | . . . . Machines Sabotaged . | . . . . Overloaded Fab Kills . | . . . . Hacking | -11 -10 -10 -9 --------- Run | Yrd Mat Min Mat Machines Accessed 10 | . 4 . 6 Terminals 5 | . 3 . 2 Fabricators . | . . . . Repair Stations 1 | . . . 1 Recycling Units 2 | . 1 . 1 Scanalyzers 2 | . . . 2 Garrison Access . | . . . . Total Hacks 36 | . 11 . 25 Successful 28 | . 6 . 22 Failed 7 | . 5 . 2 Catastrophic 1 | . 1 . . Database Lockouts 1 | . . . 1 Manual 17 | . 11 . 6 Terminals 17 | . 9 . 8 Fabricators . | . . . . Repair Stations 2 | . . . 2 Recycling Units 3 | . 2 . 1 Scanalyzers 14 | . . . 14 Garrison Access . | . . . . Terminal Hacks 2 | . . . 2 Locate Traps 1 | . . . 1 Zone Layout 1 | . . . 1 Fabricator Hacks . | . . . . Repair Station Hacks 2 | . . . 2 Scan Component 1 | . . . 1 Repair 1 | . . . 1 Recycling Unit Hacks 1 | . . . 1 Report Inventory 1 | . . . 1 Scanalyzer 13 | . . . 13 Insert Component 5 | . . . 5 Analyze 7 | . . . 7 Retrieve Study 1 | . . . 1 Garrison Access Hacks . | . . . . Unauthorized Hacks 10 | . 6 . 4 Terminals 9 | . 5 . 4 Track 2 | . 1 . 1 Botnet 5 | . 3 . 2 Operators 2 | . 1 . 1 Fabricators . | . . . . Repair Stations . | . . . . Recycling Units 1 | . 1 . . Reject 1 | . 1 . . Scanalyzers . | . . . . Garrison Access . | . . . . Data Cores Recovered . | . . . . Used . | . . . . Hacking Detections 7 | . 3 . 4 Full Trace Events . | . . . . Feedback Events . | . . . . Feedback Blocked . | . . . . Robot Schematics Acquired . | . . . . Robots Built . | . . . . Authchips . | . . . . Time . | . . . . Total Robot Build Rating . | . . . . Part Schematics Acquired 5 | . . . 5 Parts Built . | . . . . Authchips . | . . . . Time . | . . . . Total Part Build Rating . | . . . . Part Studies Acquired 1 | . . . 1 Parts Repaired 1 | . . . 1 Time 26 | . . . 26 Parts Recycled . | . . . . Recycled Matter . | . . . . Retrieved Matter . | . . . . Retrieved Components . | . . . . Parts Scanalyzed 5 | . . . 5 Part Schematics Acquired 5 | . . . 5 Parts Damaged . | . . . . Bothacking | -11 -10 -10 -9 ------------ Run | Yrd Mat Min Mat Used RIF Installer . | . . . . Robots Hacked . | . . . . Non-combat . | . . . . Combat . | . . . . Robot Hacks Applied . | . . . . Relay Couplers Released . | . . . . Fabnet Peak Effective % . | . . . . Robots Rewired . | . . . . Allies Hacked . | . . . . Hacks Repelled . | . . . . Allies | -11 -10 -10 -9 -------- Run | Yrd Mat Min Mat Total Allies 1 | . . 1 . Largest Group 1 | . . 1 . Highest-Rated Group 31 | . . 31 . Highest-Rated Ally 31 | . . 31 . Total Orders . | . . . . Ally Attacks 1 | . . 1 . Total Damage . | . . . . Kills . | . . . . Allies Corrupted . | . . . . Allies Melted . | . . . . Intel | -11 -10 -10 -9 ------- Run | Yrd Mat Min Mat Active Infowar (turns) 883 | . . . 883 Optics 883 | . . . 883 T.N.C. 132 | . . . 132 Robot Analysis Total . | . . . . Derelict Logs Recovered . | . . . . Drone Launches . | . . . . Drone Recoveries . | . . . . Exploration | -11 -10 -10 -9 ------------- Run | Yrd Mat Min Mat Turns Passed 1397 | . 445 68 884 Spaces Moved 790 | 1 215 45 529 Core . | . . . . Treads 253 | . 50 . 203 Legs 165 | 1 164 . . Wheels 372 | . 1 45 326 Hover . | . . . . Flight . | . . . . Fastest Speed 80 | 120 120 80 80 Average Speed 125 | 120 148 120 116 Slowest Speed 240 | 120 240 140 240 Overloaded Moves . | . . . . Propulsion Burnouts . | . . . . Robots Hopped . | . . . . Potential Cave-ins . | . . . . Cave-ins Triggered . | . . . . Exploration Rate (%) 29 | 2 48 19 47 Regions Visited 3 Branch Regions 1 Pre-discovered Areas . | . . . . Known Exits Taken . | . . . . Unknown Exits Taken 3 | 1 1 1 . Scrap Searched . | . . . . Spaces Dug . | . . . . Terrain Destroyed 4 | . 4 . . Melee . | . . . . Projectile . | . . . . AOE 4 | . 4 . . Terrain Rammed . | . . . . Walls Destroyed . | . . . . Machines Disabled . | . . . . Actions | -11 -10 -10 -9 --------- Run | Yrd Mat Min Mat Total 1026 | . 286 52 688 Wait 45 | . 11 2 32 Move 787 | . 214 44 529 Hop . | . . . . Pick Up 29 | . 12 1 16 Fast Attach 5 | . 1 . 4 Attach 9 | . 3 . 6 Detach 1 | . . . 1 Swap 15 | . 4 . 11 Drop 17 | . 6 1 10 Fire 118 | . 35 4 79 Melee . | . . . . Ram . | . . . . Kick . | . . . . Crush . | . . . . Escape Stasis . | . . . . Rewire . | . . . . Trap . | . . . . Miscellaneous . | . . . . Route ------- -11/Scrapyard -10/Materials (discovered 2 exits: *Mat / [*Min]) -10/Mines -9/Materials (discovered 1 exit: [*Mat]) History --------- Turn | Location | Event 1 | -11/Scrapyard | Discovered new exit (range 0) 1 | -11/Scrapyard | Entered Materials 286 | -10/Materials | Discovered new exit (range 16) 328 | -10/Materials | Destroyed 9 combat bots 345 | -10/Materials | Build established: Mutant 389 | -10/Materials | Discovered new exit (range 12) 446 | -10/Materials | Entered Mines 449 | -10/Mines | Received a Mining Laser from a helpful Derelict 471 | -10/Mines | Assembled infested the area 476 | -10/Mines | Assisted by a Guerilla fighting off Assembled 501 | -10/Mines | Core integrity fell below 50% 506 | -10/Mines | Discovered new exit (range 10) 514 | -10/Mines | Entered Materials 514 | -9/Materials | Evolved 2 slots: Utility x2 678 | -9/Materials | Central database locked down 854 | -9/Materials | Build established: Scavenger-Mutant 951 | -9/Materials | Discovered new exit (range 18) 1163 | -9/Materials | Core integrity fell below 50% 1316 | -9/Materials | Repaired Lgt. Assault Rifle+ 1391 | -9/Materials | Core integrity fell below 20% 1398 | -9/Materials | Destroyed by G-34 Mercenary with Small Laser Last Messages --------------- Lgt. Assault Rifle+ Rating: 1 Time: 26 >>Repair Repairing Lgt. Assault Rifle+... ETC: 26 01316_ Repair station completes Lgt. Assault Rifle+ repairs. 01316_ Acquired Lgt. Assault Rifle+. 01323_ K-01 Serf cleans the Neutrino Reactor. 01336_ K-01 Serf cleans the Recycling Unit. 01337_ R-06 Scavenger inserts Heat Sink into recycling unit. 01340_ R-06 Scavenger inserts Flight Unit into recycling unit. 01388_ Cld. Ion Engine destroyed. 01393_ L-31 Rogue destroyed. 01394_ Lgt. Treads destroyed. 01394_ K-01 Serf collects debris. Map ----- +----------------------------------------------------+ | | | | | | | | | | | | | | | | | | | ?????????????????????????????##### | | ?????????????????????????????# | | ?????????????????????????????# """ | | ?????????????????????????????# """ | | ?????????????????????????????# """ | | ??????????###########????????# | | ??????????# #????????# | | ??????????# """ """ #????????# | | ??????????# """ """ ########## | | ?????##+### """ """ # ####+ | | ?????? # # """ ### | | ??????? # #!! """ %+ | | ???????# # #!! """ %### | | ???????# # #! %#?# | | ???????+ ##+######+# "" #?# | | ???????# g # Y" #?# | | ???????# @% k + "" #?# | | ???????# ### ###### ! #?# | | ???????# #?# #????##### ####?# | | ???????# r#?# #????????###????# | | ???????# #?# ????????????? | | ???????# #?# ????????? | | ??????? ?#+####???????####### | | ??????? Y ????????????????????# | | ??????? ????????????????????# | | ??????# ????????????????????# | | ??????## #????????????????????# | | ???????#k ?????????????????????# | | ???????# ?????????????????????# | | ??????? ?????????????????????# | | ???????# ?????????????????????# | | ???????? ?????????????????????# | | ???????? ????????????????????? | | ???????? ??????????????????????? | | ?????????????????????????????????? | | ?????????????????????????????????? | | ?????????????????????????????????? | | ?????????????????????????????????? | | ?????????????????????????????????? | | ?????????????????????????????????? | | ?????????????????????????????????? | +----------------------------------------------------+ Best States ------------- Heat Dissipation 38 Energy Generation 14 Energy Capacity 280 Matter Stores 300 Matter Capacity 300 Sight Range 18 Terrain Scan Density 10 Evasion (%) 55 Recoil Reduction 2 Offensive Hacking 10 Item Schematics ----------------- Cld. Ion Engine | -9/Materials | Scanalyzed Arm. Wheel | -9/Materials | Scanalyzed Visual Processing Unit | -9/Materials | Scanalyzed Beam Rifle | -9/Materials | Scanalyzed Sml. Storage Unit | -9/Materials | Scanalyzed Robot Schematics ------------------ None Fabricated ------------ Nothing Repaired ---------- Lgt. Assault Rifle | 15% | -9/Materials Studied --------- Lgt. Assault Rifle | -9/Materials | Hacked Alien Tech Used ----------------- None Achievements -------------- None Challenges ------------ None Game ------ Seed RingGyrokineticBank Manual? 0 Play Time 00:15:45 Cumulative 63.5 hours Start 2025.12.27 @ 09:22:05 End 2025.12.27 @ 09:37:33 Sessions 1 Manual Loads 0 Difficulty Rogue Special Mode None Game No. 96 Rogue 74 Adventurer 20 Explorer 2 Win Type - Total 0 Types 0/0/0/0/0/0/0/0/0/0 Lore% 43 Gallery% 37 Achievement% 26 Wizard Run 0 Options --------- Layout 1 ASCII 0 Keyboard 0 Movement Numpad Keybinds 0 Fullscreen 2 Font 24/Smallcaps Map View 50x35 Zoom Use 0% Tactical HUD 1 Map Filters NONE Filters NONE Steam 1 RUN: 367a9a7e-2a43-4b6c-a9b6-3f5275c9c518